fUSD/lending_fUSD_20240501
["ID","MTS","AMOUNT","RATE_DAILY","PERIOD"]
[325234469,1714603846292,-50000.0,0.00022,2]
[325234470,1714603846302,-156.55480031,0.00022032,2]
[325234471,1714603846311,-3200.0,0.00022132,2]
[325234472,1714603846320,-2100.0,0.00022132,2]
[325234473,1714603846329,-744.57994,0.0002235,2]
[325234474,1714603846338,-211.0,0.0002249,2]
[325234475,1714603846347,-398.71722492,0.00022674,2]
[325234476,1714603846356,-500.0,0.0002268,2]
[325234477,1714603846365,-500.0,0.0002268,2]
[325234478,1714603846375,-500.0,0.0002268,2]
[325234479,1714603846384,-2100.0,0.0002268,2]
[325234480,1714603846394,-150.0,0.00022999,2]
[325234481,1714603846403,-50000.0,0.00023,3]
[325234482,1714603846413,-155.0,0.00023,2]
[325234483,1714603846422,-17686.11973703,0.00023,2]
[325234484,1714603846431,-5857.767179,0.00023,15]
[325234485,1714603846440,-5271.90386381,0.00023043,2]
[325234486,1714603846449,-153.03920342,0.00023191,2]
[325234487,1714603846459,-150.0,0.00023217,2]
[325234488,1714603846468,-415.83,0.00023217,2]
[325234489,1714603846477,-300.0,0.00023217,2]
[325234490,1714603846486,-300.0,0.00023217,2]
[325234491,1714603846495,-350.73,0.00023217,2]
[325234492,1714603846504,-150.0,0.00023217,2]
[325234493,1714603846513,-150.0,0.00023217,2]
[325234494,1714603846522,-350.73,0.00023217,2]
[325234495,1714603846531,-162.97,0.00023217,2]
[325234496,1714603846540,-150.0,0.00023217,2]
[325234497,1714603846549,-350.73,0.00023217,2]
[325234498,1714603846559,-162.97,0.00023217,2]
[325234499,1714603846568,-419.48,0.00023219,2]
[325234500,1714603846577,-712.15,0.00023219,2]
[325234501,1714603846586,-162.8,0.00023219,2]
[325234502,1714603846597,-3200.0,0.00023228,2]
[325234504,1714603846606,-150.0,0.0002324,14]
[325234505,1714603846615,-1999.82575251,0.000234,2]
[325234506,1714603846624,-211.0,0.0002342,2]
[325234507,1714603846633,-398.71722492,0.00023563,2]
[325234508,1714603846642,-1469.86,0.00023582,15]
[325234509,1714603846651,-500.0,0.00023776,2]
[325234510,1714603846661,-500.0,0.00023776,2]
[325234511,1714603846671,-500.0,0.00023776,2]
[325234512,1714603846680,-2100.0,0.00023776,2]
[325234513,1714603846689,-983.34665686,0.00023873,2]
[325234514,1714603846699,-150.66768681,0.00023913,2]
[325234515,1714603846708,-150.0,0.00023999,2]
[325234516,1714603846717,-50000.0,0.00024,4]
[325234517,1714603846726,-155.0,0.00024,2]
[325234518,1714603846736,-829.05758702,0.00024,2]
[325234519,1714603846745,-350.73,0.00024039,2]
[325234520,1714603846754,-150.0,0.00024039,2]
[325234521,1714603846763,-162.97,0.00024039,2]
[325234522,1714603846772,-150.0,0.00024039,2]
[325234523,1714603846781,-162.97,0.00024039,2]
[325234524,1714603846790,-3200.0,0.00024324,2]
[325234525,1714603846800,-211.0,0.0002436,2]
[325234526,1714603846810,-166.43933311,0.00024392,2]
[325234527,1714603846819,-150.0,0.000244,4]
[325234528,1714603846828,-398.71722492,0.00024453,2]
[325234529,1714603846838,-210.36911107,0.00024561,2]
[325234530,1714603846847,-150.0,0.00024589,14]
[325234531,1714603846857,-5271.90386381,0.00024614,2]
[325234532,1714603846866,-744.57994,0.0002485,2]
[325234533,1714603846875,-500.0,0.00024872,2]
[325234534,1714603846885,-500.0,0.00024872,2]
[325234535,1714603846894,-500.0,0.00024872,2]
[325234536,1714603846903,-2100.0,0.00024872,2]
[325234537,1714603846912,-150.0,0.00024873,2]
[325234538,1714603846920,-909.18,0.00024873,2]
[325234539,1714603846930,-780.31,0.00024873,2]
[325234540,1714603846941,-213.0,0.000249,2]
[325234541,1714603846951,-150.0,0.000249,4]
[325234542,1714603846961,-150.0,0.00024999,2]
[325234543,1714603846970,-50000.0,0.00025,5]
[325234544,1714603846979,-2606.76124263,0.00025,2]
[325234545,1714603846988,-572.67268291,0.00025,7]
[325234546,1714603846997,-904.40132654,0.00025,2]
[325234547,1714603847006,-1085.46430081,0.00025,2]
[325234548,1714603847016,-10000.0,0.00025,15]
[325234549,1714603847025,-211.0,0.0002529,2]
[325234550,1714603847035,-398.71722492,0.00025342,2]
[325234551,1714603847044,-150.0,0.000254,4]
[325234552,1714603847054,-150.0,0.000254,2]
[325234553,1714603847064,-3200.0,0.0002542,2]
[325234554,1714603847074,-603.06,0.00025498,2]
[325234555,1714603847083,-125438.18481654,0.00025561,7]
[325234556,1714603847092,-3000.0,0.00025561,2]
[325234557,1714603847102,-211.33323388,0.00025561,5]
[325234558,1714603847112,-11979.22735438,0.00025561,30]
[325234559,1714603847123,-150.0,0.00025561,2]
[325234560,1714603847132,-150.0,0.00025561,2]
[325234561,1714603847143,-200.0,0.00025561,2]
[325234562,1714603847153,-187.0,0.00025561,30]
[325234563,1714603847162,-3406.6625405,0.00025561,30]
[325234564,1714603847172,-448.0,0.00025561,60]
[325234565,1714603847183,-256.42958406,0.00025561,30]
[325234566,1714603847192,-1084.81577786,0.00025561,30]
[325234567,1714603847203,-25869.64460797,0.00025561,2]
[325234568,1714603847219,-12707.43310162,0.00025561,2]
[325234569,1714603847241,-3790.18593967,0.00025561,2]
[325234570,1714603847809,-150.0,0.000202,2]
[325234571,1714603847819,-236.34527195,0.00025561,2]
[325234572,1714603847831,-360.33347825,0.00025561,2]
[325234573,1714603847850,-3931.81169741,0.00025561,2]
[325234574,1714603847859,-497.95450714,0.00025561,30]
[325234575,1714603847868,-282.62279393,0.00025561,30]
[325234576,1714603847878,-1033.0,0.00025561,10]
[325234577,1714603847887,-1033.0,0.00025561,10]
[325234578,1714603847896,-1033.0,0.00025561,10]
[325234579,1714603847905,-1035.15232265,0.00025561,10]
[325234580,1714603847915,-155.1537093,0.00025561,2]
[325234581,1714603847924,-150.0,0.000259,4]
[325234582,1714603847933,-200.57224444,0.00025927,2]
[325234583,1714603847947,-150.0,0.00025939,14]
[325234584,1714603847957,-503.22098015,0.00025968,2]
[325234585,1714603847966,-500.0,0.00025968,2]
[325234586,1714603847975,-500.0,0.00025968,2]
[325234587,1714603847985,-2100.0,0.00025968,2]
[325234588,1714603847994,-150.0,0.00025999,2]
[325234589,1714603848003,-1219.69401358,0.00025999,10]
[325234590,1714603848014,-50000.0,0.00026,6]
[325234591,1714603848025,-5271.90386381,0.00026185,2]
[325234592,1714603848038,-211.0,0.0002623,2]
[325234593,1714603848048,-398.71722492,0.00026232,2]
[325234594,1714603848058,-150.76,0.00026275,2]
[325234595,1714603848067,-150.66768681,0.00026277,2]
[325234596,1714603848076,-152.44857822,0.000264,2]
[325234597,1714603848085,-150.0,0.000264,5]
[325234598,1714603848095,-1033.0,0.00026493,2]
[325234599,1714603848104,-14333.73216695,0.000265,2]
[325234600,1714603848115,-253.94151929,0.000265,2]
[325234601,1714603848126,-1647.31152015,0.000265,2]
[325234602,1714603848137,-24822.99801041,0.000265,2]
[325234603,1714603848146,-164.97902,0.000265,5]
[325234604,1714603848155,-3200.0,0.00026516,2]
[325234605,1714603848166,-3361.63314401,0.00026767,2]
[325234606,1714603848175,-983.34665686,0.00026841,2]
[325234607,1714603848185,-4360.07137872,0.000269,2]
[325234608,1714603848197,-5639.92862128,0.000269,2]
[325234609,1714603848206,-150.0,0.000269,5]
[325234610,1714603848215,-150.0,0.00026999,2]
[325234611,1714603848225,-50000.0,0.00027,7]
[325234612,1714603848234,-3338.71656259,0.00027,2]
[325234613,1714603848244,-155.0,0.00027,4]
[325234614,1714603848253,-1816.10981613,0.00027,120]
[325234615,1714603849943,-311.94361153,0.00027,120]
[325234616,1714603849953,-150.0,0.00027,2]
[325234617,1714603849962,-150.0,0.00027,5]
[325234618,1714603849971,-500.0,0.00027064,2]
[325234619,1714603849983,-500.0,0.00027064,2]
[325234620,1714603849992,-2100.0,0.00027064,2]
[325234621,1714603850001,-398.71722492,0.00027121,2]
[325234622,1714603850011,-200.57224443,0.00027145,2]
[325234623,1714603850020,-211.0,0.0002716,2]
[325234624,1714603850030,-150.0,0.00027288,14]
[325234625,1714603850043,-1469.86,0.00027318,15]
[325234626,1714603850052,-744.57995,0.0002735,2]
[325234627,1714603850062,-300.0,0.00027397,2]
[325234628,1714603850071,-1000.0,0.00027397,2]
[325234629,1714603850080,-150.0,0.00027397,2]
[325234630,1714603850089,-150.0,0.000274,5]
[325234631,1714603850098,-2000.0,0.000274,2]
[325234632,1714603850107,-155.0,0.00027455,30]
[325234633,1714603850117,-150.0,0.000275,5]
[325234634,1714603850126,-268.1,0.00027537,30]
[325234635,1714603850135,-578.62696912,0.00027612,2]
[325234636,1714603897752,1346.5203891,0.00011,2]
[325234640,1714603997780,408.61554877,0.00011,2]
[325234643,1714604145915,497287.19208535,0.00011,2]
[325234644,1714604221945,150.0,0.00010993,2]
[325234646,1714604412243,872.86053366,0.00011,2]
[325234648,1714604692631,408.84785113,0.00011,2]
[325234649,1714604692881,155.18386345,0.00011,2]
[325234650,1714604694594,548.26568754,0.00011,2]
[325234651,1714604696295,257.58973417,0.00011,2]
[325234652,1714604696823,7504.73353817,0.00011,2]
[325234653,1714604698222,546613.28657072,0.00011,2]
[325234654,1714604698658,400.0964921,0.00011,2]
[325234655,1714604698736,362.42172502,0.00011,2]
[325234656,1714604699722,395.48709337,0.00011,2]
[325234657,1714604699799,366.07058041,0.00011,2]
[325234658,1714604707821,408.66658841,0.00011,2]
[325234659,1714604712221,172.62072627,0.00011,2]
[325234660,1714604712996,7504.73353817,0.00011,2]
[325234661,1714604714020,68818.79244013,0.00011,2]
[325234662,1714604723784,366.07058041,0.00011,2]
[325234663,1714604730013,1714.67772988,0.00011,2]
[325234664,1714604730040,195947.29276001,0.00011,2]
[325234665,1714604730065,348912.96526178,0.00011,2]
[325234666,1714604734832,4268.85466474,0.00011,2]
[325234667,1714604743776,366.07058041,0.00011,2]
[325234668,1714604757968,202.6,0.00017,30]
[325234669,1714604761789,447.75730327,0.00011,2]
[325234670,1714604776328,119552.24269673,0.00011,2]
[325234671,1714604776360,140503.61072689,0.00011,2]
[325234680,1714605032368,-210.77904721,0.00011016,2]
[325234681,1714605032381,-364.06331454,0.00011017,2]
[325234682,1714605032394,-155.0,0.00011018,2]
[325234683,1714605032407,-968.39033166,0.00011018,2]
[325234684,1714605032421,-408.76902294,0.00011019,2]
[325234685,1714605032434,-158.55,0.00011035,2]
[325234686,1714605032447,-154.74,0.00011181,2]
[325234687,1714605032463,-487.83304681,0.00011398,2]
[325234688,1714605032476,-158.563,0.000119,2]
[325234689,1714605032490,-1186.59958985,0.000119,2]
[325234690,1714605032506,-574.25050338,0.000119,2]
[325234691,1714605032522,-595.8401339,0.000119,2]
[325234692,1714605032538,-1848.61575999,0.000119,2]
[325234693,1714605032554,-1450.28399832,0.000119,2]
[325234694,1714605032570,-1499.96122777,0.000119,2]
[325234695,1714605032583,-317.01746459,0.00011998,2]
[325234696,1714605032597,-191.83505497,0.00011998,2]
[325234697,1714605032610,-1444.70578106,0.00011998,2]
[325234698,1714605032626,-299.68,0.00011998,2]
[325234699,1714605032643,-574.82159736,0.00011998,2]
[325234700,1714605032656,-193.7726764,0.00011998,2]
[325234702,1714605032672,-73.65545869,0.00011998,2]
[325234705,1714605032684,-2047.72217883,0.000121,2]
[325234707,1714605032700,-1194.85289494,0.000121,2]
[325234710,1714605032716,-3971.0701764,0.000121,2]
[325234713,1714605032731,-704.62238723,0.000121,2]
[325234732,1714605032905,-7020.0,0.000121,2]
[325234734,1714605032917,-13125.53380091,0.000121,2]
[325234736,1714605032928,-2915.1687,0.000121,2]
[325234738,1714605032940,-1792.17707563,0.000121,2]
[325234740,1714605032949,-1154.4548,0.000128,2]
[325234742,1714605032959,-1000.0,0.00012896,2]
[325234744,1714605032969,-2635.95193193,0.000129,2]
[325234746,1714605032978,-37720.48479502,0.000129,2]
[325234748,1714605032987,-6982.66,0.000129,2]
[325234750,1714605032996,-7500.0,0.000129,2]
[325234752,1714605033006,-150.42918333,0.000129,2]
[325234754,1714605033015,-152.44857822,0.000129,2]
[325234756,1714605033024,-2500.0,0.000129,2]
[325234758,1714605033033,-1177.32766756,0.000129,2]
[325234759,1714605033043,-155.0,0.00012998,2]
[325234760,1714605033052,-155.0,0.00012998,2]
[325234761,1714605033477,-641.79865261,0.00012998,2]
[325234762,1714605033502,-487.22450388,0.00012998,2]
[325234763,1714605033512,-155.0,0.00012998,2]
[325234764,1714605033521,-4407.35148608,0.00012998,2]
[325234765,1714605033531,-376.7617514,0.00012998,2]
[325234766,1714605033540,-2359.48463868,0.00012998,2]
[325234767,1714605033549,-161.47811392,0.00012998,2]
[325234768,1714605033559,-155.32715041,0.00012998,2]
[325234769,1714605033569,-380.65588204,0.00012998,2]
[325234770,1714605033579,-155.0,0.00012998,2]
[325234771,1714605033588,-305.33150416,0.00012998,2]
[325234772,1714605033597,-362.51852426,0.00012998,2]
[325234773,1714605033606,-369.94061345,0.00012998,2]
[325234774,1714605033615,-787.08726309,0.00012998,2]
[325234775,1714605033624,-155.0,0.00012998,2]
[325234776,1714605033633,-155.34681504,0.00012998,2]
[325234777,1714605033642,-155.0,0.00012998,2]
[325234778,1714605033651,-155.0,0.00012998,2]
[325234779,1714605033660,-155.38150104,0.00012998,2]
[325234780,1714605033669,-343.10485617,0.00012998,2]
[325234781,1714605033678,-559.86765241,0.00012998,2]
[325234782,1714605033688,-313.36259302,0.00012998,2]
[325234783,1714605033697,-500.0,0.00012998,2]
[325234784,1714605033706,-1203.99652219,0.00012999,3]
[325234785,1714605033716,-1203.99652219,0.00012999,3]
[325234786,1714605033725,-2030.61135066,0.00012999,2]
[325234787,1714605033735,-407795.38453185,0.00013,2]
[325234788,1714605033747,-82794.50030867,0.00013,2]
[325234789,1714605033758,-30679.999987,0.00013,2]
[325234790,1714605033772,-3025.0,0.00013,2]
[325234791,1714605033783,-919.32000046,0.00013,2]
[325234792,1714605033794,-630.85,0.00013,2]
[325234793,1714605033806,-308.41322846,0.00013,2]
[325234794,1714605033819,-261.36402809,0.00013,2]
[325234795,1714605033831,-258.128903,0.00013,2]
[325234796,1714605033842,-266.27999998,0.00013,2]
[325234797,1714605033855,-752.4458828,0.00013,2]
[325234798,1714605033866,-5107.4353723,0.00013,2]
[325234799,1714605033877,-1592.4647743,0.00013,2]
[325234800,1714605033888,-6481.68123966,0.00013,2]
[325234801,1714605033899,-1997.4276,0.00013,2]
[325234802,1714605033910,-1042.16772,0.00013,2]
[325234803,1714605033921,-1309.51,0.00013,2]
[325234804,1714605033932,-1486.7837916,0.00013,2]
[325234805,1714605033943,-647.77,0.00013,2]
[325234806,1714605033955,-920.0,0.00013,2]
[325234807,1714605033994,-2214.06189973,0.00013,2]
[325234808,1714605034005,-956.33828,0.00013,2]
[325234809,1714605034017,-404.0000001,0.00013,2]
[325234810,1714605034028,-326.34,0.00013,2]
[325234811,1714605034038,-420.0,0.00013,2]
[325234812,1714605034049,-494.10488114,0.00013,2]
[325234813,1714605034061,-2837.76049588,0.00013,2]
[325234836,1714605038638,-6339.3,0.00013,2]
[325234837,1714605038649,-366.83172432,0.00013,2]
[325234838,1714605038660,-16275.51606301,0.00013,2]
[325234839,1714605038672,-577.69928284,0.00013,2]
[325234840,1714605038782,-56002.05872996,0.00013,2]
[325234841,1714605038794,-1562.91945283,0.00013,2]
[325234842,1714605038806,-3487.91076185,0.00013,2]
[325234843,1714605038817,-4384.87269119,0.00013,2]
[325234844,1714605038830,-10814.15479515,0.00013,2]
[325234845,1714605038841,-313.18496432,0.00013,2]
[325234846,1714605038853,-2818.69293606,0.00013,2]
[325234847,1714605038865,-1162.02,0.00013,2]
[325234848,1714605038876,-3917.91334157,0.00013,2]
[325234849,1714605038887,-6328.75319065,0.00013,2]
[325234850,1714605038899,-2538.78599999,0.00013,2]
[325234851,1714605038910,-446637.98116579,0.00013,2]
[325234852,1714605038951,-30772.72992024,0.00013,2]
[325234853,1714605038962,-4502.1743515,0.00013,2]
[325234854,1714605038973,-1025.72594383,0.00013,2]
[325234959,1714605040434,-7076.40798514,0.00013,2]
[325234960,1714605040446,-591.65,0.00013,2]
[325234961,1714605040578,-15000.0,0.00013,2]
[325234962,1714605040725,-139252.30883277,0.00013,2]
[325235019,1714605041390,-424538.86803115,0.00013,2]
[325235228,1714605043498,-202212.39634018,0.00013,2]
[325235230,1714605043509,-1242369.92987328,0.00013,2]
[325235231,1714605043521,-332.00402996,0.00013,2]
[325235232,1714605044049,-1008918.23,0.00013,2]
[325235233,1714605044060,-1376.18983,0.00013,2]
[325235234,1714605044086,-2085.46216407,0.00013,2]
[325235235,1714605046383,-199.68592469,0.00012999,2]
[325235236,1714605046392,-210.18519769,0.00012999,2]
[325235237,1714605046402,-267.84538385,0.00012999,2]
[325235238,1714605046411,-498.76786433,0.00013,2]
[325235239,1714605046422,-401.74494621,0.00013,2]
[325235240,1714605046433,-519.4081,0.00013,2]
[325235241,1714605046527,-63734.709052,0.00013,2]
[325235290,1714605270331,546.30192148,0.000104,2]
[325235291,1714605284097,2543.06730662,9.75e-05,2]
[325235292,1714605286262,546.30192148,0.000104,2]
[325235293,1714605289919,170.63029076,5e-05,2]
[325235294,1714605294632,-1540.650933,0.00011538,2]
[325235295,1714605294674,-749.82602733,0.00011595,2]
[325235296,1714605294707,-968.39033166,0.00011595,2]
[325235297,1714605294745,-155.0,0.00011596,2]
[325235298,1714605294782,-155.0,0.00011596,2]
[325235299,1714605294818,-154.13110169,0.00011597,2]
[325235300,1714605294856,-37255.19157554,0.00011696,2]
[325235301,1714605302039,197.09919786,9.75e-05,2]
[325235302,1714605302715,150.0,0.00010993,2]
[325235303,1714605307108,546.30192148,0.000104,2]
[325235304,1714605308397,183.45,0.00010262,2]
[325235305,1714605310694,893.71143773,0.00010399,2]
[325235306,1714605322783,257.58973417,0.00010993,2]
[325235307,1714605324564,10639.24404503,0.00010993,2]
[325235308,1714605326197,173.18880076,0.00010993,2]
[325235309,1714605326412,399.55332141,0.00010993,2]
[325235310,1714605326446,408.84785113,0.00010993,2]
[325235311,1714605326541,155.0,0.00010993,2]
[325235312,1714605327644,1472.72036714,0.00010993,2]
[325235313,1714605328191,155.0,0.00010993,2]
[325235314,1714605328348,681.11556595,8.794e-05,2]
[325235315,1714605328526,366.07058041,0.00010993,2]
[325235316,1714605328972,288.66568232,0.00010993,2]
[325235317,1714605329314,361.52463539,0.00010993,2]
[325235318,1714605331727,155.0,0.00010993,2]
[325235319,1714605338608,399.55332141,0.00010993,2]
[325235320,1714605338675,155.0,0.00010993,2]
[325235321,1714605339022,172.62072627,0.00010993,2]
[325235322,1714605342197,173.18880076,0.00010993,2]
[325235323,1714605343646,1472.72036714,0.00010993,2]
[325235324,1714605343874,155.0,0.00010993,2]
[325235325,1714605344970,288.66568232,0.00010993,2]
[325235326,1714605346364,366.07058041,0.00010993,2]
[325235327,1714605346510,408.84785113,0.00010993,2]
[325235328,1714605347330,361.52463539,0.00010993,2]
[325235329,1714605347729,205.88387895,0.00010993,2]
[325235330,1714605356422,399.55332141,0.00010993,2]
[325235331,1714605360702,155.0,0.00010993,2]
[325235332,1714605362202,159.45473794,0.00010993,2]
[325235333,1714605362374,366.07058041,0.00010993,2]
[325235334,1714605363663,1472.72036714,0.00010993,2]
[325235335,1714605363883,155.0,0.00010993,2]
[325235336,1714605364444,408.43428605,0.00010993,2]
[325235337,1714605367203,418.58545145,0.00010993,2]
[325235338,1714605367306,361.52463539,0.00010993,2]
[325235339,1714605374422,399.55332141,0.00010993,2]
[325235340,1714605374553,155.0,0.00010993,2]
[325235341,1714605378356,447.62818212,0.00010993,2]
[325235342,1714605381656,1472.72036714,0.00010993,2]
[325235343,1714605383882,155.83158027,0.00010993,2]
[325235344,1714605384539,943.82673649,0.00010993,2]
[325235345,1714605385322,361.52463539,0.00010993,2]
[325235346,1714605396565,155.0,0.00010993,2]
[325235347,1714605400539,943.82673649,0.00010993,2]
[325235348,1714605401149,399.55332141,0.00010993,2]
[325235349,1714605402007,1472.72036714,0.00010993,2]
[325235350,1714605407325,361.52463539,0.00010993,2]
[325235351,1714605416547,951.18873393,0.00010993,2]
[325235352,1714605417076,398.86529132,0.00010993,2]
[325235353,1714605418582,264.89044906,0.00010993,2]
[325235354,1714605423327,361.52463539,0.00010993,2]
[325235355,1714605423721,1472.72036714,0.00010993,2]
[325235356,1714605439330,361.52463539,0.00010993,2]
[325235357,1714605439660,1472.72036714,0.00010993,2]
[325235358,1714605459667,1205.37929239,0.00010993,2]
[325235359,1714605461325,361.52463539,0.00010993,2]
[325235360,1714605479372,361.52463539,0.00010993,2]
[325235361,1714605501342,159.62413554,0.00010993,2]
[325235362,1714605556940,1334.62389622,0.00010989,2]
[325235363,1714605611223,1540.650933,0.00010972,2]
[325235364,1714605617162,817.84000414,0.00010927,2]
[325235365,1714605643565,4622.4604331,0.0002,50]
[325235366,1714605709940,158.08,8.92e-05,2]
[325235367,1714605792176,232.2038,0.00010928,2]
[325235368,1714605827867,1528.4033,0.00010923,2]
[325235369,1714605850004,968.39033166,0.00010999,2]
[325235370,1714605852321,155.0,0.00010999,2]
[325235371,1714605854990,545.99933752,0.00010999,2]
[325235372,1714605859081,167.50197039,0.00010999,2]
[325235373,1714605866226,488.008592,0.00010999,2]
[325235374,1714605873373,524.39078621,0.00010999,2]
[325235375,1714605874487,157.38146901,0.00010999,2]
[325235376,1714605876464,954.01337786,0.00010999,2]
[325235377,1714605877056,781.96889708,0.00010999,2]
[325235378,1714605877092,155.0,0.00010999,2]
[325235379,1714605891187,1996.39282651,0.00010999,2]
[325235380,1714605892802,2181.42240899,0.00010999,2]
[325235381,1714605908463,1295.02080291,0.00010999,2]
[325235382,1714605911636,872.86053366,0.00011,2]
[325235383,1714605973379,255.63107012,0.00010999,2]
[325235384,1714606101796,545.99933752,0.00010999,2]
[325235385,1714606104335,155.0,0.00010999,2]
[325235386,1714606202188,150.0,0.00010993,2]
[325235396,1714606231598,-339.7200004,0.00011,2]
[325235397,1714606231615,-410.10602693,0.00011,2]
[325235398,1714606231623,-155.76623754,0.00011007,2]
[325235399,1714606231633,-6282.42,0.00011062,2]
[325235400,1714606231643,-493.33,0.00011092,2]
[325235401,1714606231653,-150.0,0.00011148,2]
[325235402,1714606231663,-400.0,0.00011171,2]
[325235403,1714606231672,-4248.42,0.00011198,2]
[325235404,1714606231683,-250.0,0.00011214,2]
[325235405,1714606231693,-250.0,0.0001122,2]
[325235406,1714606231702,-150.99,0.0001122,2]
[325235407,1714606231711,-1381.07484941,0.0001122,2]
[325235408,1714606231724,-26028.51515059,0.0001122,2]
[325235409,1714606231734,-1000.0,0.00011236,2]
[325235410,1714606231744,-165.32,0.00011246,2]
[325235411,1714606231754,-500.0,0.00011251,2]
[325235412,1714606231763,-3199.98,0.00011293,2]
[325235413,1714606231773,-153.41477955,0.00011298,2]
[325235414,1714606231782,-159.85,0.00011313,2]
[325235415,1714606231792,-366.20823664,0.00011597,2]
[325235416,1714606231801,-2552.0346,0.00011598,2]
[325235417,1714606231810,-214.53180043,0.00011638,2]
[325235418,1714606231819,-154.13110157,0.00011706,2]
[325235419,1714606231828,-154.13110157,0.00011814,2]
[325235420,1714606231838,-153.41477952,0.00011832,2]
[325235421,1714606231847,-154.13110157,0.00011923,2]
[325235422,1714606231857,-154.13110157,0.00012031,2]
[325235423,1714606231867,-210.0,0.00012092,2]
[325235424,1714606231876,-154.13110157,0.0001214,2]
[325235425,1714606231886,-545.99933752,0.00012242,2]
[325235426,1714606231895,-180.78,0.00012243,2]
[325235427,1714606231905,-154.13110157,0.00012249,2]
[325235428,1714606231914,-953.38967146,0.00012346,2]
[325235430,1714606231925,-1294.44165297,0.00012346,2]
[325235432,1714606231934,-154.13110157,0.00012357,2]
[325235434,1714606231944,-153.41477952,0.00012366,2]
[325235436,1714606231954,-154.13110157,0.00012466,2]
[325235438,1714606231963,-400.0,0.00012568,2]
[325235439,1714606231972,-154.13110157,0.00012574,2]
[325235441,1714606231982,-150.0,0.00012605,2]
[325235443,1714606231991,-1000.0,0.0001264,2]
[325235445,1714606232000,-154.13110157,0.00012683,2]
[325235447,1714606232009,-154.13110157,0.00012791,2]
[325235450,1714606232020,-168.25332178,0.00012898,2]
[325235451,1714606232030,-533.3453203,0.00012899,2]
[325235454,1714606232040,-154.13110157,0.000129,2]
[325235456,1714606232049,-153.41477952,0.000129,2]
[325235458,1714606232058,-31004.82087974,0.000129,2]
[325235465,1714606232123,-325.09234905,0.000129,2]
[325235468,1714606232135,-6188.23802931,0.000129,2]
[325235470,1714606232144,-197.63697068,0.000129,2]
[325235472,1714606232159,-2782.16302932,0.000129,2]
[325235473,1714606232168,-150.42918332,0.000129,2]
[325235474,1714606232178,-152.44857822,0.000129,2]
[325235475,1714606232188,-218.22894187,0.000129,2]
[325235476,1714606232199,-308.97079904,0.000129,2]
[325235477,1714606232209,-358.82970823,0.000129,2]
[325235478,1714606232221,-426.05540349,0.000129,2]
[325235479,1714606232232,-973.94459651,0.000129,2]
[325235480,1714606232244,-3041.23814796,0.000129,2]
[325235481,1714606232256,-2306.45794043,0.000129,2]
[325235482,1714606232266,-385.8864257,0.000129,2]
[325235483,1714606232275,-7709.92073646,0.000129,2]
[325235484,1714606232288,-256.4326,0.000129,2]
[325235485,1714606232300,-495.39119193,0.000129,2]
[325235486,1714606232312,-363.6,0.000129,2]
[325235487,1714606232325,-4753.56669623,0.000129,2]
[325235488,1714606232336,-816.80394384,0.00012996,2]
[325235489,1714606232346,-167.43493362,0.00012996,2]
[325235490,1714606232356,-524.19857863,0.00012996,2]
[325235491,1714606232367,-157.38146901,0.00012996,2]
[325235492,1714606232376,-480.61437867,0.00012996,2]
[325235493,1714606232387,-301.19980871,0.00012996,2]
[325235494,1714606232397,-155.0,0.00012996,2]
[325235495,1714606232406,-2181.42240899,0.00012996,2]
[325235496,1714606232417,-1748.73747272,0.00012996,2]